bitfinex/quotes_BTCUSD_20230107
["timestamp","ask_amount","ask_price","bid_price","bid_amount"]
[1673079562865,0.44611316,16955.0,16954.0,3.26611844]
[1673079568941,0.44611316,16955.0,16954.0,2.56611844]
[1673079569470,0.004,16955.0,16954.0,2.56611844]
[1673079570004,0.004,16955.0,16954.0,2.65975381]
[1673079570244,0.004,16955.0,16954.0,3.26601281]
[1673079571794,0.004,16955.0,16954.0,2.65975381]
[1673079572302,0.53483162,16955.0,16954.0,3.26601281]
[1673079573304,0.53483162,16955.0,16954.0,2.12755204]
[1673079573305,1.16179479,16955.0,16954.0,2.12755204]
[1673079573552,1.16179479,16955.0,16954.0,0.94799567]
[1673079573553,1.24198173,16955.0,16954.0,0.94799567]
[1673079573814,2.54010516,16955.0,16954.0,0.94799567]
[1673079574063,2.30242727,16955.0,16954.0,0.94799567]
[1673079574832,1.7010941,16955.0,16954.0,0.80899567]
[1673079575082,1.7010941,16955.0,16954.0,0.21599567]
[1673079575083,2.30174849,16955.0,16954.0,0.21599567]
[1673079575333,2.30174849,16955.0,16954.0,0.10899567]
[1673079575586,2.01653612,16955.0,16954.0,0.21599567]
[1673079577138,1.41988173,16955.0,16954.0,0.21599567]
[1673079577906,2.00967773,16955.0,16954.0,0.21599567]
[1673079578162,2.00967773,16955.0,16954.0,0.91599567]
[1673079578682,2.59947373,16955.0,16954.0,0.91599567]
[1673079582114,3.12926682,16955.0,16954.0,0.91599567]
[1673079582365,2.59947373,16955.0,16954.0,0.91599567]
[1673079583153,3.12918207,16955.0,16954.0,0.91599567]
[1673079583665,2.59947373,16955.0,16954.0,0.91599567]
[1673079585140,3.12906076,16955.0,16954.0,0.91599567]
[1673079586187,2.59947373,16955.0,16954.0,0.91599567]
[1673079586485,2.67997788,16955.0,16954.0,0.91599567]
[1673079586929,2.67997788,16955.0,16954.0,0.21599567]
[1673079587138,3.12898036,16955.0,16954.0,0.21599567]
[1673079587857,3.12898036,16955.0,16954.0,0.91599567]
[1673079588588,2.59947373,16955.0,16954.0,0.91599567]
[1673079589583,3.12891863,16955.0,16954.0,0.91599567]
[1673079589803,2.59947373,16955.0,16954.0,0.91599567]
[1673079590057,3.12891817,16955.0,16954.0,0.91599567]
[1673079590567,3.12891817,16955.0,16954.0,0.91591169]
[1673079592321,2.59947373,16955.0,16954.0,0.91591169]
[1673079592572,3.12888294,16955.0,16954.0,0.91591169]
[1673079593794,2.59947373,16955.0,16954.0,0.91591169]
[1673079594295,2.59947373,16955.0,16954.0,0.21591169]
[1673079595288,2.82536093,16955.0,16954.0,0.21591169]
[1673079595547,2.59947373,16955.0,16954.0,0.21591169]
[1673079595765,2.59947373,16955.0,16954.0,0.91591169]
[1673079596018,2.42557373,16955.0,16954.0,0.91591169]
[1673079601782,2.42557373,16955.0,16954.0,0.20786569]
[1673079602024,3.02557373,16955.0,16954.0,0.20786569]
[1673079602796,3.02557373,16955.0,16954.0,0.90786569]
[1673079604662,2.42557373,16955.0,16954.0,0.90786569]
[1673079604894,2.95525225,16955.0,16954.0,1.51412469]
[1673079605183,2.42557373,16955.0,16954.0,1.51412469]
[1673079605426,2.95540987,16955.0,16954.0,1.51412469]
[1673079606922,2.95540987,16955.0,16954.0,0.90786569]
[1673079607438,2.42557373,16955.0,16954.0,0.90786569]
[1673079607936,2.95560263,16955.0,16954.0,1.51412469]
[1673079608185,2.42557373,16955.0,16954.0,0.90786569]
[1673079608436,2.95560243,16955.0,16954.0,0.90786569]
[1673079608691,2.36580643,16955.0,16954.0,0.90786569]
[1673079609212,1.83577773,16955.0,16954.0,0.90786569]
[1673079609728,1.83577773,16955.0,16954.0,0.90779087]
[1673079611531,2.43243212,16955.0,16954.0,0.90779087]
[1673079611760,1.83577773,16955.0,16954.0,0.90779087]
[1673079613232,2.43243212,16955.0,16954.0,0.90779087]
[1673079615506,3.02222812,16955.0,16954.0,0.90779087]
[1673079616011,2.43243212,16955.0,16954.0,0.90779087]
[1673079624263,3.02222812,16955.0,16954.0,0.90779087]
[1673079624769,2.42557373,16955.0,16954.0,0.20779087]
[1673079625783,2.42557373,16955.0,16954.0,0.90779087]
[1673079626755,2.25167373,16955.0,16954.0,0.90779087]
[1673079630031,2.84886634,16955.0,16954.0,0.90779087]
[1673079630517,2.25167373,16955.0,16954.0,0.90779087]
[1673079631766,2.25167373,16955.0,16954.0,0.20779087]
[1673079632274,2.25167373,16955.0,16954.0,0.2076988]
[1673079632782,2.25167373,16955.0,16954.0,0.9076988]
[1673079638405,1.66187773,16955.0,16954.0,0.9076988]
[1673079638925,2.25907869,16955.0,16954.0,0.9076988]
[1673079639176,1.66187773,16955.0,16954.0,0.9076988]
[1673079639423,2.2590968,16955.0,16954.0,0.9076988]
[1673079639671,1.66187773,16955.0,16954.0,0.9076988]
[1673079641004,2.25909439,16955.0,16954.0,0.9076988]
[1673079641244,1.66187773,16955.0,16954.0,0.9076988]
[1673079645835,1.66187773,16955.0,16954.0,0.2076988]
[1673079646844,1.66187773,16955.0,16954.0,0.9076988]
[1673079648078,2.25915694,16955.0,16954.0,0.9076988]
[1673079648562,2.84895294,16955.0,16954.0,0.9076988]
[1673079651311,2.25167373,16955.0,16954.0,0.9076988]
[1673079652825,2.84902808,16955.0,16954.0,0.2076988]
[1673079653069,2.25167373,16955.0,16954.0,0.2076988]
[1673079653820,2.25167373,16955.0,16954.0,0.9076988]
[1673079656179,2.25167373,16955.0,16954.0,0.90758258]
[1673079659870,2.25167373,16955.0,16954.0,0.20758258]
[1673079660901,2.25167373,16955.0,16954.0,0.90758258]
[1673079663643,2.84908114,16955.0,16954.0,0.90758258]
[1673079663872,2.25167373,16955.0,16954.0,0.90758258]
[1673079664160,2.84906792,16955.0,16954.0,0.90758258]
[1673079664414,2.84906725,16955.0,16954.0,0.90758258]
[1673079666173,2.84906074,16955.0,16954.0,0.90758258]
[1673079668194,2.25167373,16955.0,16954.0,0.90758258]
[1673079668447,2.8490546,16955.0,16954.0,0.90758258]
[1673079668931,2.84905049,16955.0,16954.0,0.90758258]
[1673079670703,2.25925449,16955.0,16954.0,0.90758258]
[1673079672179,2.25925449,16955.0,16954.0,0.20758258]
[1673079672924,2.25924611,16955.0,16954.0,0.20758258]
[1673079673177,2.25924611,16955.0,16954.0,0.90758258]
[1673079675680,1.66187773,16955.0,16954.0,0.90758258]
[1673079676687,2.25167373,16955.0,16954.0,0.90758258]
[1673079679276,2.25167373,16955.0,16954.0,0.20758258]
[1673079680055,2.25167373,16955.0,16954.0,0.90758258]
[1673079680296,2.25167373,16955.0,16954.0,0.90752057]
[1673079682772,1.66187773,16955.0,16954.0,0.90752057]
[1673079682986,2.25935378,16955.0,16954.0,0.90752057]
[1673079683203,2.25935414,16955.0,16954.0,0.90752057]
[1673079683448,1.66187773,16955.0,16954.0,0.90752057]
[1673079683984,2.25167373,16955.0,16954.0,0.90752057]
[1673079686242,2.25167373,16955.0,16954.0,1.51377957]
[1673079686505,2.25167373,16955.0,16954.0,0.90752057]
[1673079687768,2.25167373,16955.0,16954.0,1.51377957]
[1673079688011,2.25167373,16955.0,16954.0,0.90752057]
[1673079688259,2.25167373,16955.0,16954.0,1.51377957]
[1673079689537,2.25167373,16955.0,16954.0,0.90752057]
[1673079689757,2.25167373,16955.0,16954.0,0.90552057]
[1673079689984,2.25167373,16955.0,16954.0,0.20552057]
[1673079691007,2.25167373,16955.0,16954.0,0.90552057]
[1673079701504,2.25167373,16955.0,16954.0,0.20552057]
[1673079702512,2.25167373,16955.0,16954.0,0.90552057]
[1673079711606,2.25167373,16955.0,16954.0,0.90541448]
[1673079711852,2.85167373,16955.0,16954.0,0.90541448]
[1673079712074,2.86017373,16955.0,16954.0,0.90541448]
[1673079713363,2.96572427,16955.0,16954.0,0.90541448]
[1673079715091,2.96572427,16955.0,16954.0,0.20541448]
[1673079716591,2.96572427,16955.0,16954.0,0.90541448]
[1673079720420,2.96483206,16955.0,16954.0,0.90541448]
[1673079722693,2.96483206,16955.0,16954.0,0.20541448]
[1673079723721,2.96483206,16955.0,16954.0,0.90541448]
[1673079729814,2.96483206,16955.0,16954.0,0.20541448]
[1673079730316,3.26483206,16955.0,16954.0,0.20541448]
[1673079733391,2.96483206,16955.0,16954.0,0.20541448]
[1673079733880,3.26483206,16955.0,16954.0,0.20541448]
[1673079735137,2.96483206,16955.0,16954.0,0.20541448]
[1673079735883,2.96483206,16955.0,16954.0,0.90541448]
[1673079741925,2.96483206,16955.0,16954.0,0.20541448]
[1673079742176,2.96483206,16955.0,16954.0,0.20533226]
[1673079742891,2.96483206,16955.0,16954.0,0.90533226]
[1673079743898,3.26483206,16955.0,16954.0,0.90533226]
[1673079744387,2.96483206,16955.0,16954.0,0.90533226]
[1673079747603,3.26483206,16955.0,16954.0,0.90533226]
[1673079747854,2.96483206,16955.0,16954.0,0.90533226]
[1673079748850,2.96483206,16955.0,16954.0,0.20533226]
[1673079749877,2.96483206,16955.0,16954.0,0.90533226]
[1673079750125,3.26483206,16955.0,16954.0,0.90533226]
[1673079750862,3.72611908,16955.0,16954.0,0.90533226]
[1673079752148,3.26483206,16955.0,16954.0,0.90533226]
[1673079755683,3.26483206,16955.0,16954.0,0.20533226]
[1673079756997,4.13606878,16955.0,16954.0,0.20533226]
[1673079762530,3.74253158,16955.0,16954.0,0.20533226]
[1673079762780,3.50485369,16955.0,16954.0,0.20533226]
[1673079763036,3.99154836,16955.0,16954.0,0.20533226]
[1673079763333,3.98354836,16955.0,16954.0,0.09833226]
[1673079763543,4.04654836,16955.0,16954.0,0.10833226]
[1673079763796,3.98354836,16955.0,16954.0,0.09833226]
[1673079764042,4.04654836,16955.0,16954.0,0.10833226]
[1673079764288,3.39375236,16955.0,16952.0,0.01471511]
[1673079764541,0.7732,16953.0,16952.0,0.01471511]
[1673079764784,2.71516084,16953.0,16952.0,0.01471511]
[1673079765549,2.71516084,16953.0,16952.0,0.01460827]
[1673079766067,2.71516084,16953.0,16952.0,0.02460827]
[1673079766307,2.71516084,16953.0,16952.0,0.01460827]
[1673079766569,2.77816084,16953.0,16952.0,0.02460827]
[1673079766824,2.77816084,16953.0,16952.0,0.01460827]
[1673079766825,2.71516084,16953.0,16952.0,0.01460827]
[1673079767045,3.31068709,16953.0,16952.0,0.01460827]
[1673079767309,3.37368709,16953.0,16952.0,0.02460827]
[1673079767821,3.90840655,16953.0,16952.0,0.02460827]
[1673079768332,3.37368709,16953.0,16952.0,0.02460827]
[1673079768830,3.38215564,16953.0,16952.0,0.02460827]
[1673079769083,2.77816084,16953.0,16952.0,0.02460827]
[1673079769323,3.39761447,16953.0,16952.0,0.02460827]
[1673079769824,3.39649471,16953.0,16952.0,0.02460827]
[1673079770050,3.93349494,16953.0,16952.0,0.02460827]
[1673079771328,3.31516107,16953.0,16952.0,0.02460827]
[1673079777364,3.35080041,16953.0,16952.0,0.02460827]
[1673079777851,4.22116871,16953.0,16952.0,0.02460827]
[1673079780349,4.39506871,16953.0,16952.0,0.02460827]
[1673079786930,4.39506871,16953.0,16952.0,0.02453644]
[1673079787188,3.85806848,16953.0,16952.0,0.02453644]
[1673079789598,3.16060018,16953.0,16952.0,0.0220828]
[1673079791393,3.16060018,16953.0,16952.0,0.13464326]
[1673079791646,0.6,16952.0,16951.0,0.00396579]
[1673079791903,3.92369619,16952.0,16951.0,0.00396579]
[1673079792186,3.95933553,16952.0,16951.0,0.00396579]
[1673079794272,4.09533553,16952.0,16951.0,0.11399709]
[1673079794524,3.50483553,16952.0,16951.0,0.11399709]
[1673079794873,4.50910763,16952.0,16951.0,0.11399709]
[1673079795150,4.37310763,16952.0,16951.0,0.11399709]
[1673079795401,3.64083553,16952.0,16951.0,0.11399709]
[1673079795661,3.64083553,16952.0,16951.0,0.10259739]
[1673079796180,0.6,16951.0,16948.0,0.00273028]
[1673079796431,1.04062085,16949.0,16948.0,0.00273028]
[1673079796693,2.90944434,16949.0,16948.0,0.00273028]
[1673079796942,2.73908494,16949.0,16948.0,0.00273028]
[1673079797205,2.74758494,16949.0,16948.0,0.00273028]
[1673079797467,3.61590579,16949.0,16948.0,0.00273028]
[1673079797711,4.16327037,16949.0,16948.0,0.00273028]
[1673079798461,4.29827037,16949.0,16948.0,0.00273028]
[1673079800815,3.42994952,16949.0,16948.0,0.00273028]
[1673079801632,2.88258494,16949.0,16948.0,0.00245726]
[1673079807436,2.88258494,16949.0,16948.0,0.11778793]
[1673079807689,2.88258494,16949.0,16948.0,0.11754221]
[1673079808163,2.74758494,16949.0,16948.0,0.11754221]
[1673079808405,2.88358494,16949.0,16948.0,0.00221154]
[1673079808658,3.84245952,16949.0,16948.0,0.00221154]
[1673079809418,3.84245952,16949.0,16948.0,0.11754221]
[1673079809667,3.40015952,16949.0,16948.0,0.11754221]
[1673079813148,2.58358494,16949.0,16948.0,0.11754221]
[1673079814697,2.88358494,16949.0,16948.0,0.11754221]
[1673079815440,2.88358494,16949.0,16948.0,0.00221154]
[1673079816191,2.88358494,16949.0,16948.0,0.1070576]
[1673079817204,2.88358494,16949.0,16948.0,0.00221154]
[1673079818199,2.88358494,16949.0,16948.0,0.1070576]
[1673079819226,2.88358494,16949.0,16948.0,0.00221154]
[1673079819754,3.39415952,16949.0,16948.0,0.00221154]
[1673079820243,3.39415952,16949.0,16948.0,0.1070576]
[1673079821256,3.39415952,16949.0,16948.0,0.00221154]
[1673079822297,3.39415952,16949.0,16948.0,0.1070576]
[1673079823371,0.25319393,16947.0,16946.0,0.00096206]
[1673079823630,2.78305153,16947.0,16946.0,0.00096206]
[1673079823891,3.43723579,16947.0,16946.0,0.00096206]
[1673079824140,2.78305153,16947.0,16946.0,0.00096206]
[1673079824399,2.78305153,16947.0,16946.0,0.10586621]
[1673079825117,3.39056072,16947.0,16946.0,0.10586621]
[1673079825371,3.52556072,16947.0,16946.0,0.10586621]
[1673079826584,2.91805153,16947.0,16946.0,0.10586621]
[1673079827092,3.26985668,16947.0,16946.0,0.10586621]
[1673079827851,3.89227395,16947.0,16946.0,0.09586621]
[1673079828080,3.5404688,16947.0,16946.0,0.09586621]
[1673079828301,2.91805153,16947.0,16946.0,0.09586621]
[1673079830073,3.42307818,16947.0,16946.0,0.09586621]
[1673079830854,2.91805153,16947.0,16946.0,0.09586621]
[1673079831108,3.59400875,16947.0,16946.0,0.09586621]
[1673079832908,2.91805153,16947.0,16946.0,0.09586621]
[1673079833216,3.44156449,16947.0,16946.0,0.09586621]
[1673079833425,3.47720383,16947.0,16946.0,0.09586621]
[1673079833685,4.34552468,16947.0,16946.0,0.09586621]
[1673079836608,4.95579913,16947.0,16946.0,0.09586621]
[1673079836871,4.34552468,16947.0,16946.0,0.09586621]
[1673079837142,5.02761612,16947.0,16946.0,0.09586621]
[1673079837664,4.34552468,16947.0,16946.0,0.09586621]
[1673079839399,4.34552468,16947.0,16945.0,0.00096206]
[1673079839712,1.76630156,16946.0,16945.0,0.00096206]
[1673079839933,2.94651956,16946.0,16945.0,0.00096206]
[1673079841254,3.07051956,16946.0,16945.0,0.00096206]
[1673079841492,3.70274339,16946.0,16945.0,0.00096206]
[1673079842266,3.29607743,16946.0,16945.0,0.00096206]
[1673079842786,2.99607743,16946.0,16945.0,0.00096206]
[1673079844208,2.99607743,16946.0,16945.0,0.10568986]
[1673079846018,2.99607743,16946.0,16945.0,1.38664396]
[1673079846019,2.54182128,16946.0,16945.0,1.38664396]
[1673079846286,0.72089463,16946.0,16945.0,1.55924396]
[1673079846542,0.72089463,16946.0,16945.0,2.16550296]
[1673079847062,0.59689463,16946.0,16945.0,2.16550296]
[1673079847325,1.19378626,16946.0,16945.0,2.16608349]
[1673079847567,1.25328626,16946.0,16945.0,2.16550296]
[1673079847821,0.60539163,16946.0,16945.0,2.16550296]
[1673079848077,0.61239163,16946.0,16945.0,2.16550296]
[1673079849353,0.0155,16946.0,16945.0,2.16550296]
[1673079849924,0.0155,16946.0,16945.0,2.16539795]
[1673079850191,0.61198985,16946.0,16945.0,2.16539795]
[1673079851844,0.61198985,16946.0,16945.0,1.55913895]
[1673079852636,0.61198985,16946.0,16945.0,2.16539795]
[1673079852885,1.20846921,16946.0,16945.0,2.16539795]
[1673079853128,1.20846921,16946.0,16945.0,1.55913895]
[1673079854108,1.20846921,16946.0,16945.0,2.16539795]
[1673079854648,1.20846921,16946.0,16945.0,1.55913895]
[1673079857368,1.20846921,16946.0,16945.0,0.97818485]
[1673079857621,2.93062717,16946.0,16945.0,0.97818485]
[1673079859588,2.34051817,16946.0,16945.0,0.97818485]
[1673079859845,2.47949157,16946.0,16945.0,0.97818485]
[1673079860103,2.93062717,16946.0,16945.0,0.97818485]
[1673079862153,2.93062717,16946.0,16945.0,0.97134415]
[1673079867575,2.93062717,16946.0,16945.0,0.79874415]
[1673079870089,2.47949157,16946.0,16945.0,0.79874415]
[1673079871108,1.88938257,16946.0,16945.0,0.79874415]
[1673079871441,1.88938257,16946.0,16945.0,0.05874415]
[1673079871442,1.29290321,16946.0,16945.0,0.05874415]
[1673079872394,1.29290321,16946.0,16944.0,0.6598514]
[1673079872644,0.53008686,16945.0,16944.0,0.6598514]
[1673079872908,0.53008686,16945.0,16944.0,1.3598514]
[1673079874397,0.53008686,16945.0,16944.0,1.3728514]
[1673079874909,0.54308686,16945.0,16944.0,1.3738514]
[1673079876652,0.54308686,16945.0,16944.0,1.1999514]
[1673079878441,0.54308686,16945.0,16944.0,0.4999514]
[1673079879249,0.54308686,16945.0,16944.0,1.1999514]
[1673079880483,0.013,16945.0,16944.0,1.1999514]
[1673079880731,0.54308686,16945.0,16944.0,1.1999514]
[1673079886813,0.54308686,16945.0,16944.0,0.6738514]
[1673079887833,0.54308686,16945.0,16944.0,1.3738514]
[1673079891560,0.54308686,16945.0,16944.0,1.37376892]
[1673079893918,0.54308686,16945.0,16944.0,0.67376892]
[1673079894964,0.54308686,16945.0,16944.0,1.37376892]
[1673079896229,0.013,16945.0,16944.0,1.37376892]
[1673079896726,0.013,16945.0,16944.0,1.19986892]
[1673079897204,0.013,16945.0,16944.0,1.20086892]
[1673079898190,0.54308686,16945.0,16944.0,1.20086892]
[1673079898465,0.013,16945.0,16944.0,1.20086892]
[1673079899707,0.54308686,16945.0,16944.0,1.20086892]
[1673079901465,0.53505086,16945.0,16944.0,1.20086892]
[1673079903783,0.53495721,16945.0,16944.0,1.20086892]
[1673079904288,0.53495721,16945.0,16944.0,0.50086892]
[1673079905053,0.00487035,16945.0,16944.0,0.50086892]
[1673079905305,0.00487035,16945.0,16944.0,1.20086892]
[1673079905560,0.53495721,16945.0,16944.0,1.20086892]
[1673079911514,0.53495721,16945.0,16944.0,0.50086892]
[1673079912322,0.53495721,16945.0,16944.0,1.20086892]
[1673079914345,0.53495721,16945.0,16944.0,0.71587958]
[1673079914598,0.44715996,16945.0,16944.0,3.30329294]
[1673079914859,0.62412768,16945.0,16944.0,3.47559294]
[1673079915133,0.44720154,16945.0,16944.0,3.47559294]
[1673079915380,0.44720154,16945.0,16944.0,3.77559294]
[1673079916194,0.44233119,16945.0,16944.0,3.76159294]
[1673079916417,0.18293519,16945.0,16944.0,3.87259294]
[1673079918195,0.18293519,16945.0,16944.0,4.3843362]
[1673079918439,0.18293519,16945.0,16944.0,4.0843362]
[1673079919932,0.18293519,16945.0,16944.0,3.57259294]
[1673079920691,0.006,16945.0,16944.0,3.87259294]
[1673079921165,0.006,16945.0,16944.0,3.87317351]
[1673079921424,0.006,16945.0,16944.0,4.48574373]
[1673079921684,0.006,16945.0,16944.0,3.87317351]
[1673079922264,0.006,16945.0,16944.0,4.18389799]
[1673079922774,0.006,16945.0,16944.0,3.57317351]
[1673079923023,0.006,16945.0,16944.0,4.55873978]
[1673079923244,0.006,16945.0,16944.0,4.25873978]
[1673079924344,0.006,16945.0,16944.0,3.57317351]
[1673079925382,0.00462896,16945.0,16944.0,4.42329456]
[1673079925677,0.00462896,16945.0,16944.0,4.12329456]
[1673079926187,0.00462896,16945.0,16944.0,3.57317351]
[1673079927167,0.00462896,16945.0,16944.0,3.87317351]
[1673079927412,0.00462896,16945.0,16944.0,3.57317351]
[1673079927724,0.00462896,16945.0,16944.0,3.87317351]
[1673079928145,0.00462896,16945.0,16944.0,3.17317351]
[1673079929381,0.00462896,16945.0,16944.0,3.87317351]
[1673079930376,0.00778996,16945.0,16944.0,3.87317351]
[1673079935379,0.00778996,16945.0,16944.0,3.17317351]
[1673079935630,0.00778996,16945.0,16944.0,3.42184808]
[1673079935875,0.00778996,16945.0,16944.0,3.17317351]
[1673079936364,0.00778996,16945.0,16944.0,3.87317351]
[1673079936883,0.00778996,16945.0,16944.0,4.2095643]
[1673079937149,0.00778996,16945.0,16944.0,3.9095643]
[1673079938750,0.00778996,16945.0,16944.0,3.40027351]
[1673079939000,0.00778996,16945.0,16944.0,3.70027351]
[1673079939257,0.00778996,16945.0,16944.0,3.40027351]
[1673079939463,0.00778996,16945.0,16944.0,3.70027351]
[1673079940229,0.00778996,16945.0,16944.0,4.08520081]
[1673079941258,0.00778996,16945.0,16944.0,4.38520081]
[1673079941723,0.00778996,16945.0,16944.0,3.70027351]
[1673079941978,0.00778996,16945.0,16944.0,4.03957879]
[1673079942232,0.00778996,16945.0,16944.0,3.63957879]
[1673079943206,0.00778996,16945.0,16944.0,4.33957879]
[1673079943637,0.00778996,16945.0,16944.0,3.58558243]
[1673079943856,0.00778996,16945.0,16944.0,4.03957879]
[1673079944081,0.00778996,16945.0,16944.0,3.58558243]
[1673079944285,0.00778996,16945.0,16944.0,4.03957879]
[1673079944726,0.00778996,16945.0,16944.0,3.58558243]
[1673079944937,0.00778996,16945.0,16944.0,4.33957879]
[1673079945375,0.00778996,16945.0,16944.0,4.03957879]
[1673079946510,0.00778996,16945.0,16944.0,4.33957879]
[1673079946752,0.00778996,16945.0,16944.0,4.03957879]
[1673079947827,0.00778996,16945.0,16944.0,3.58550357]
[1673079949854,0.18472515,16945.0,16944.0,3.58550357]
[1673079952312,0.45012115,16945.0,16944.0,3.58550357]
[1673079953043,0.18472515,16945.0,16944.0,3.58550357]
[1673079954316,0.62704729,16945.0,16944.0,3.58550357]
[1673079956353,0.62704729,16945.0,16944.0,2.88550357]
[1673079957084,0.62704729,16945.0,16944.0,3.33949993]
[1673079957335,0.62704729,16945.0,16944.0,4.12928476]
[1673079957610,0.62704729,16945.0,16944.0,3.6752884]
[1673079963442,0.62704729,16945.0,16944.0,2.9752884]
[1673079963930,0.45013982,16945.0,16944.0,2.3690294]
[1673079964421,0.45013982,16945.0,16944.0,3.6752884]
[1673079965370,0.80400115,16945.0,16944.0,3.6752884]
[1673079966875,0.62704729,16945.0,16944.0,3.6752884]
[1673079970302,0.62704729,16945.0,16944.0,2.9752884]
[1673079970535,0.62704729,16945.0,16944.0,3.6752884]
[1673079972752,0.62704729,16945.0,16944.0,3.67516915]
[1673079973018,1.0693369,16945.0,16944.0,3.67516915]
[1673079973239,0.62704729,16945.0,16944.0,3.67516915]
[1673079980662,0.62694058,16945.0,16944.0,3.67516915]
[1673079981900,0.62694058,16945.0,16944.0,2.97516915]
[1673079982915,0.62694058,16945.0,16944.0,3.67516915]
[1673079986712,0.62694058,16945.0,16944.0,3.50286915]
[1673079987998,0.62694058,16945.0,16944.0,3.32896915]
[1673079993823,0.80391593,16945.0,16944.0,3.32896915]
[1673079994029,0.62694058,16945.0,16944.0,3.32896915]
[1673079994273,0.80391671,16945.0,16944.0,3.32896915]
[1673079994531,0.62694058,16945.0,16944.0,3.32896915]
[1673079994787,0.62694058,16945.0,16944.0,2.62896915]
[1673079995565,0.62694058,16945.0,16944.0,3.32896915]
[1673079996838,0.80391669,16945.0,16944.0,3.32896915]
[1673079997617,0.45005536,16945.0,16944.0,3.32896915]
[1673080001606,0.45005536,16945.0,16944.0,2.62896915]
[1673080002624,0.45005536,16945.0,16944.0,3.32896915]
[1673080004711,0.45005536,16945.0,16944.0,3.32889924]
[1673080008594,0.45005536,16945.0,16944.0,2.62889924]
[1673080009602,0.45005536,16945.0,16944.0,3.32889924]
[1673080015586,0.45005536,16945.0,16944.0,2.62889924]
[1673080016607,0.45005536,16945.0,16944.0,3.32889924]
[1673080017879,0.45005536,16945.0,16944.0,2.72264024]
[1673080018408,0.45005536,16945.0,16944.0,3.32889924]
[1673080022629,0.45005536,16945.0,16944.0,2.62889924]
[1673080023741,0.45005536,16945.0,16944.0,3.32889924]
[1673080026778,0.45005536,16945.0,16944.0,2.72264024]
[1673080027324,0.80391669,16945.0,16944.0,3.32889924]
[1673080027601,0.62694058,16945.0,16944.0,3.32889924]
[1673080029157,0.62694058,16945.0,16944.0,3.32831867]
[1673080029415,0.62694058,16945.0,16944.0,2.72205967]
[1673080030250,0.62694058,16945.0,16944.0,3.32831867]
[1673080032906,0.62694058,16945.0,16944.0,3.32889924]
[1673080039515,0.62694058,16945.0,16944.0,2.72264024]
[1673080040051,0.62694058,16945.0,16944.0,3.32889924]
[1673080040792,0.62694058,16945.0,16944.0,2.62889924]
[1673080041808,0.62694058,16945.0,16944.0,3.32889924]
[1673080043834,0.62694058,16945.0,16944.0,3.32825182]
[1673080044374,1.06923019,16945.0,16944.0,3.32825182]
[1673080044913,0.80383419,16945.0,16944.0,3.32825182]
[1673080045520,1.06919202,16945.0,16944.0,3.32825182]
[1673080046073,0.62690241,16945.0,16944.0,3.32825182]
[1673080047122,1.06919202,16945.0,16944.0,3.32825182]
[1673080047374,1.06919202,16945.0,16944.0,3.32883239]
[1673080047892,1.06919202,16945.0,16944.0,2.62883239]
[1673080048412,0.62690241,16945.0,16944.0,2.62883239]
[1673080048664,0.62690241,16945.0,16944.0,3.32883239]
[1673080049525,0.62690241,16945.0,16944.0,2.72257339]
[1673080050034,0.62690241,16945.0,16944.0,3.32883239]
[1673080054572,1.06919202,16945.0,16944.0,2.62825182]
[1673080054839,0.80383419,16945.0,16944.0,2.02199282]
[1673080055083,0.80383419,16945.0,16944.0,2.62825182]
[1673080055652,0.80383419,16945.0,16944.0,3.32825182]
[1673080058246,0.80383419,16945.0,16944.0,3.32883239]
[1673080061537,0.80383419,16945.0,16944.0,2.62883239]
[1673080061789,1.04151208,16945.0,16944.0,2.62825182]
[1673080062047,0.44997286,16945.0,16944.0,2.62825182]
[1673080062580,0.44997286,16945.0,16944.0,3.32825182]
[1673080063603,0.44997286,16945.0,16944.0,2.72199282]
[1673080064117,0.44997286,16945.0,16944.0,3.32825182]
[1673080065682,0.44997286,16945.0,16944.0,3.32818603]
[1673080067180,0.44997286,16945.0,16944.0,2.72192703]
[1673080067688,0.44997286,16945.0,16944.0,3.32818603]
[1673080070670,0.44997286,16945.0,16944.0,2.72192703]
[1673080071201,0.44997286,16945.0,16944.0,3.32818603]
[1673080072251,0.44997286,16945.0,16944.0,2.03800703]
[1673080072511,0.44997286,16945.0,16944.0,2.73800703]
[1673080076860,0.80359616,16945.0,16944.0,2.73800703]
[1673080078396,0.80359616,16945.0,16944.0,2.03800703]
[1673080079512,0.80359616,16945.0,16944.0,2.73800703]
[1673080080517,0.80359616,16945.0,16944.0,2.13174803]
[1673080080977,0.80359616,16945.0,16944.0,2.73800703]
[1673080082106,0.44997286,16945.0,16944.0,2.73800703]
[1673080084807,0.80362783,16945.0,16944.0,2.73800703]
[1673080085872,0.44997286,16945.0,16944.0,2.73800703]
[1673080087058,0.44997286,16945.0,16944.0,2.73789127]
[1673080090239,0.44988766,16945.0,16944.0,2.03789127]
[1673080090735,0.44988766,16945.0,16944.0,1.43163227]
[1673080091034,0.44988766,16945.0,16944.0,2.13163227]
[1673080091236,0.44988766,16945.0,16944.0,2.73789127]
[1673080091750,0.44988766,16945.0,16944.0,2.14771227]
[1673080091751,0.23238805,16945.0,16944.0,2.14771227]
[1673080092005,0.40628805,16945.0,16944.0,2.14771227]
[1673080092275,0.40628805,16945.0,16944.0,1.54145327]
[1673080092509,0.40628805,16945.0,16944.0,0.90214799]
[1673080092759,1.58600156,16945.0,16944.0,0.90214799]
[1673080094318,2.18600156,16945.0,16944.0,0.90214799]
[1673080098413,1.58600156,16945.0,16944.0,0.90214799]
[1673080100209,1.58600156,16945.0,16944.0,0.20214799]
[1673080101177,1.58600156,16945.0,16944.0,0.90214799]
[1673080108778,1.58600156,16945.0,16944.0,0.20214799]
[1673080109565,1.58600156,16945.0,16944.0,0.90214799]
[1673080110086,1.58589158,16945.0,16944.0,0.90214799]
[1673080115648,1.59439158,16945.0,16944.0,0.90214799]
[1673080117207,2.18453558,16945.0,16944.0,0.90214799]
[1673080118719,1.59439158,16945.0,16944.0,0.90214799]
[1673080124328,1.58589158,16945.0,16944.0,0.90214799]
[1673080127261,1.05580472,16945.0,16944.0,0.90214799]
[1673080128335,1.58608994,16945.0,16944.0,0.90214799]
[1673080128571,1.05580472,16945.0,16944.0,0.90214799]
[1673080131263,2.24229318,16945.0,16944.0,0.90214799]
[1673080132572,2.84093718,16945.0,16944.0,0.90214799]
[1673080133329,2.84093718,16945.0,16944.0,0.90205463]
[1673080142214,2.24459272,16945.0,16944.0,0.90205463]
[1673080144198,2.24447494,16945.0,16944.0,0.90205463]
[1673080146555,2.01968494,16945.0,16944.0,0.90205463]
[1673080148088,2.01968494,16945.0,16944.0,0.20205463]
[1673080148855,2.01679201,16945.0,16944.0,0.20205463]
[1673080149110,2.01679201,16945.0,16944.0,0.90205463]
[1673080150908,1.42664801,16945.0,16944.0,0.90205463]
[1673080155236,1.42664801,16945.0,16944.0,0.20205463]
[1673080156013,1.42664801,16945.0,16944.0,0.90205463]
[1673080157398,1.25274801,16945.0,16944.0,0.90205463]
[1673080160978,1.84909247,16945.0,16944.0,0.90205463]
[1673080162014,1.84909247,16945.0,16944.0,0.20205463]
[1673080163013,1.84909247,16945.0,16944.0,0.90205463]
[1673080163233,1.25274801,16945.0,16944.0,0.90205463]